bitfinex/quotes_BTCUSD_20220307
["timestamp","ask_amount","ask_price","bid_price","bid_amount"]
[1646666847121,1.16546558,38792.0,38784.0,0.21595245]
[1646666847320,0.8796,38790.0,38783.0,0.28475811]
[1646666847520,0.161385,38790.0,38788.0,0.1998]
[1646666847719,0.161385,38790.0,38789.0,0.05]
[1646666847922,0.0969,38790.0,38789.0,0.05]
[1646666848122,0.8796,38790.0,38789.0,0.05]
[1646666848322,0.015,38792.0,38790.0,0.02119659]
[1646666848526,0.015,38792.0,38790.0,0.08566843]
[1646666848723,0.015,38792.0,38791.0,0.35]
[1646666848922,0.015,38792.0,38791.0,0.4]
[1646666849120,0.015,38792.0,38791.0,0.54611304]
[1646666849529,0.015,38792.0,38791.0,0.84611304]
[1646666849721,0.1149,38792.0,38791.0,0.84611304]
[1646666850958,0.1705479,38802.0,38791.0,0.84611304]
[1646666851163,0.00034774,38793.0,38792.0,0.128908]
[1646666851358,0.00034774,38793.0,38792.0,0.428908]
[1646666851556,0.00034774,38793.0,38792.0,0.454578]
[1646666851758,0.00034774,38793.0,38792.0,0.428908]
[1646666851958,0.16565077,38805.0,38792.0,0.428908]
[1646666852162,0.00139072,38800.0,38797.0,0.22349321]
[1646666852558,0.00139072,38800.0,38797.0,0.28795721]
[1646666853159,0.16574018,38802.0,38797.0,0.28795721]
[1646666853360,0.37689291,38805.0,38797.0,0.28795721]
[1646666853361,0.00034771,38800.0,38797.0,0.78775721]
[1646666853760,0.00034771,38800.0,38798.0,0.05]
[1646666853960,0.00034771,38800.0,38799.0,0.3]
[1646666854212,0.1149,38805.0,38800.0,1.25]
[1646666854414,0.1149,38805.0,38802.0,0.0219236]
[1646666854608,0.1149,38805.0,38804.0,0.1895527]
[1646666854913,0.1149,38805.0,38804.0,0.2895527]
[1646666855710,0.1149,38805.0,38804.0,0.3152227]
[1646666855912,0.1149,38805.0,38804.0,0.05]
[1646666856111,0.1149,38805.0,38804.0,0.1]
[1646666856314,0.015,38805.0,38804.0,0.4]
[1646666856910,0.015,38805.0,38804.0,0.28370149]
[1646666857514,0.015,38805.0,38804.0,0.35077454]
[1646666857715,0.00011012,38806.0,38805.0,1.25]
[1646666857958,3e-06,38806.0,38805.0,1.25]
[1646666858357,0.00010712,38806.0,38804.0,0.2998]
[1646666858559,0.06328934,38814.0,38804.0,0.2998]
[1646666858757,0.06328934,38814.0,38804.0,0.1]
[1646666859059,0.18880554,38815.0,38807.0,0.19336552]
[1646666859256,0.97150554,38815.0,38807.0,0.24336552]
[1646666859657,0.97150554,38815.0,38809.0,0.01256411]
[1646666859861,0.7827,38814.0,38809.0,0.01256411]
[1646666860060,0.7827,38814.0,38813.0,0.22214223]
[1646666860259,0.7827,38814.0,38813.0,0.27214223]
[1646666860860,0.064449,38815.0,38813.0,0.27214223]
[1646666861459,0.074771,38815.0,38813.0,0.27214223]
[1646666861714,0.064449,38815.0,38813.0,0.27214223]
[1646666862315,0.847149,38815.0,38813.0,0.27214223]
[1646666862518,0.847149,38815.0,38813.0,0.22214223]
[1646666862724,1.0827,38814.0,38813.0,0.1998]
[1646666862918,1.08129867,38814.0,38813.0,0.1998]
[1646666863118,1.09417867,38814.0,38813.0,0.1998]
[1646666863918,1.10917867,38814.0,38813.0,0.1998]
[1646666864419,0.81058,38814.0,38813.0,0.1998]
[1646666865020,0.015,38814.0,38813.0,0.22626051]
[1646666865223,0.015,38814.0,38810.0,0.064445]
[1646666865224,4.81984749,38813.0,38810.0,0.064445]
[1646666865458,0.7827,38812.0,38810.0,0.064445]
[1646666865858,0.7827,38812.0,38808.0,0.05]
[1646666866261,1.20169998,38809.0,38804.0,0.1142332]
[1646666866461,1.20169998,38809.0,38804.0,0.0642332]
[1646666866658,1.20169998,38809.0,38804.0,0.1142332]
[1646666866659,0.99504446,38809.0,38804.0,0.1142332]
[1646666866859,0.99504446,38809.0,38804.0,0.0642332]
[1646666867158,1.20926827,38809.0,38804.0,0.0642332]
[1646666867358,0.7827,38808.0,38804.0,0.05]
[1646666867563,0.7827,38808.0,38806.0,0.0393]
[1646666869058,0.7827,38808.0,38806.0,0.103761]
[1646666869310,0.7827,38808.0,38807.0,0.05]
[1646666869509,0.7827,38808.0,38806.0,0.0393]
[1646666869714,0.40949864,38809.0,38806.0,0.0393]
[1646666869715,1.1343,38807.0,38806.0,0.0393]
[1646666870315,1.24718,38807.0,38806.0,0.0393]
[1646666870509,1.34708,38807.0,38806.0,0.0393]
[1646666870710,1.04708,38807.0,38806.0,0.0393]
[1646666870910,1.0342,38807.0,38806.0,0.0393]
[1646666872608,1.0342,38807.0,38806.0,0.05171125]
[1646666872812,0.9342,38807.0,38806.0,0.05171125]
[1646666875263,0.1515,38807.0,38806.0,0.05171125]
[1646666875469,0.0999,38807.0,38806.0,0.23032967]
[1646666875665,0.015,38810.0,38806.0,0.23032967]
[1646666875666,0.015,38810.0,38807.0,0.1998]
[1646666876062,0.015,38810.0,38807.0,0.2498]
[1646666876263,0.015,38810.0,38807.0,0.314242]
[1646666876909,0.015,38810.0,38808.0,0.05]
[1646666877112,0.18725066,38810.0,38808.0,0.0893]
[1646666877309,0.8826,38809.0,38808.0,0.0893]
[1646666877710,1.2342,38809.0,38808.0,0.0893]
[1646666877910,0.9342,38809.0,38808.0,0.0893]
[1646666878111,0.9342,38809.0,38808.0,0.0393]
[1646666878908,0.93209769,38809.0,38808.0,0.0393]
[1646666879310,1.33209769,38809.0,38807.0,0.2712]
[1646666879509,1.19347769,38808.0,38807.0,0.2712]
[1646666879711,1.24507769,38808.0,38807.0,0.2712]
[1646666879909,1.33209769,38808.0,38807.0,0.2712]
[1646666880109,1.03209769,38808.0,38807.0,0.2712]
[1646666880309,1.19664464,38808.0,38807.0,0.2712]
[1646666880959,1.49664464,38808.0,38807.0,0.2712]
[1646666881361,1.19664464,38808.0,38807.0,0.2712]
[1646666882862,1.50952464,38808.0,38807.0,0.2212]
[1646666883266,1.50952464,38808.0,38807.0,0.2712]
[1646666884318,1.20952464,38808.0,38807.0,0.2212]
[1646666885519,1.35952464,38808.0,38807.0,0.2212]
[1646666885720,1.20952464,38808.0,38807.0,0.2212]
[1646666886320,1.35952464,38808.0,38807.0,0.2212]
[1646666886722,1.20952464,38808.0,38807.0,0.2212]
[1646666889263,2.03059769,38807.0,38806.0,0.0214]
[1646666889472,2.89027769,38807.0,38795.0,0.05]
[1646666889664,2.89027769,38807.0,38792.0,0.00025717]
[1646666889665,0.78059769,38795.0,38792.0,0.00025717]
[1646666889863,0.78059769,38793.0,38792.0,0.00025717]
[1646666890063,2.03059769,38792.0,38791.0,0.01357339]
[1646666890266,2.04347769,38792.0,38791.0,0.01018967]
[1646666890664,2.84027769,38792.0,38791.0,0.01018967]
[1646666890974,2.84327769,38792.0,38791.0,0.01018967]
[1646666891366,2.94327769,38792.0,38791.0,0.01018967]
[1646666892206,3.04317769,38792.0,38791.0,0.01018967]
[1646666892410,3.04017769,38792.0,38791.0,0.01018967]
[1646666893209,2.94017769,38792.0,38791.0,0.01018967]
[1646666893811,3.04017769,38792.0,38791.0,0.01018967]
[1646666897067,3.04417769,38792.0,38791.0,0.01018967]
[1646666897268,3.19417769,38792.0,38791.0,0.01018967]
[1646666897468,3.19417769,38792.0,38783.0,0.02066399]
[1646666897674,1.64030969,38790.0,38784.0,0.01026846]
[1646666897870,0.78059769,38788.0,38784.0,0.01026846]
[1646666898069,0.88049769,38785.0,38784.0,0.01026846]
[1646666898272,1.04498769,38785.0,38784.0,0.01026846]
[1646666898468,1.14498769,38785.0,38784.0,0.01026846]
[1646666898969,1.14798769,38785.0,38784.0,0.01026846]
[1646666900314,1.03209769,38785.0,38784.0,0.01026846]
[1646666902212,0.1515,38785.0,38784.0,0.01026846]
[1646666902415,0.0999,38785.0,38784.0,0.06026846]
[1646666902813,0.81210473,38793.0,38787.0,0.06447788]
[1646666902814,0.52511473,38793.0,38787.0,0.06447788]
[1646666903063,0.52511473,38793.0,38792.0,0.16685604]
[1646666903266,0.92092473,38793.0,38792.0,0.21685604]
[1646666903565,0.015,38794.0,38792.0,0.51685604]
[1646666903767,0.6872,38806.0,38793.0,0.128919]
[1646666903968,0.015,38800.0,38797.0,0.25]
[1646666904363,0.000355,38802.0,38799.0,0.06446]
[1646666904561,0.000355,38802.0,38799.0,0.459585]
[1646666904761,0.00141986,38806.0,38801.0,0.37892]
[1646666904966,0.17053414,38818.0,38804.0,0.25]
[1646666905163,0.7827,38812.0,38805.0,0.3]
[1646666905462,0.7827,38812.0,38809.0,0.1998]
[1646666905667,0.10255445,38820.0,38809.0,0.1998]
[1646666905668,0.01288,38819.0,38810.0,0.51290422]
[1646666905863,0.01288,38819.0,38810.0,0.56290422]
[1646666906062,0.01288,38819.0,38810.0,0.75620822]
[1646666906264,1.0520826,38820.0,38810.0,0.75620822]
[1646666906465,1.0520826,38820.0,38812.0,0.25]
[1646666906466,4.81995421,38813.0,38812.0,0.25]
[1646666906705,4.81995421,38813.0,38812.0,0.35]
[1646666907505,4.81984749,38813.0,38812.0,0.35]
[1646666908310,4.43324749,38813.0,38812.0,0.35]
[1646666909010,4.04665449,38813.0,38812.0,0.35]
[1646666911065,4.05165449,38813.0,38812.0,0.35]
[1646666912063,3.66500349,38813.0,38812.0,0.52786621]
[1646666912264,3.66000349,38813.0,38812.0,0.52786621]
[1646666912663,3.53709349,38813.0,38812.0,0.52786621]
[1646666912864,3.09099449,38813.0,38812.0,0.52786621]
[1646666913263,2.46099449,38813.0,38812.0,0.52786621]
[1646666913865,2.46099449,38813.0,38812.0,1.02786621]
[1646666914712,2.46099449,38813.0,38812.0,0.85]
[1646666915314,2.46099449,38813.0,38812.0,0.5]
[1646666915515,3.24369449,38813.0,38812.0,0.5]
[1646666915714,3.29529449,38813.0,38812.0,0.5]
[1646666916721,3.40817449,38813.0,38812.0,0.5]
[1646666917127,3.41117449,38813.0,38812.0,0.5]
[1646666917960,3.41117449,38813.0,38812.0,0.55]
[1646666917965,2.52847449,38813.0,38812.0,0.55]
[1646666918160,2.46399449,38813.0,38812.0,0.6]
[1646666918362,2.46099449,38813.0,38812.0,0.80034215]
[1646666919359,2.46099449,38813.0,38812.0,0.6]
[1646666919961,2.07440749,38813.0,38812.0,0.9]
[1646666920561,2.0730061,38813.0,38812.0,0.9]
[1646666920761,2.0730061,38813.0,38812.0,1.06151442]
[1646666922612,2.0730061,38813.0,38812.0,0.6]
[1646666923216,2.0680061,38813.0,38812.0,0.6]
[1646666926563,2.8507061,38813.0,38812.0,0.6]
[1646666926771,2.9023061,38813.0,38812.0,0.5]
[1646666927367,2.1196061,38813.0,38812.0,0.5]
[1646666928365,2.1196061,38813.0,38812.0,0.6]
[1646666928564,2.9023061,38813.0,38812.0,0.6]
[1646666929208,2.1196061,38813.0,38812.0,0.6]
[1646666930309,2.9023061,38813.0,38812.0,0.6]
[1646666930710,3.0023061,38813.0,38812.0,0.6]
[1646666931911,3.0023061,38813.0,38812.0,0.1]
[1646666932211,3.0023061,38813.0,38810.0,0.27148561]
[1646666932212,3.1022061,38813.0,38810.0,0.27148561]
[1646666932411,0.7827,38811.0,38810.0,0.27148561]
[1646666932613,0.8343,38811.0,38810.0,0.27148561]
[1646666933268,1.00695068,38811.0,38810.0,0.82148561]
[1646666934268,0.8343,38811.0,38810.0,0.82148561]
[1646666939428,1.01333396,38811.0,38810.0,0.82148561]
[1646666939628,0.8343,38811.0,38810.0,0.82148561]
[1646666941873,0.0516,38811.0,38810.0,0.82148561]
[1646666942770,0.0516,38811.0,38810.0,0.99721857]
[1646666942975,0.0516,38811.0,38810.0,0.82148561]
[1646666943570,0.8343,38811.0,38810.0,0.82148561]
[1646666943770,2.0680061,38813.0,38810.0,0.82148561]
[1646666943970,0.05194806,38812.0,38810.0,0.82148561]
[1646666944217,0.15194806,38812.0,38811.0,0.05]
[1646666944616,0.93464806,38812.0,38811.0,0.05]
[1646666944817,0.9343,38812.0,38811.0,0.05]
[1646666945415,0.94503965,38812.0,38811.0,0.05]
[1646666946316,0.16233965,38812.0,38811.0,0.05]
[1646666947318,0.94503965,38812.0,38811.0,0.05]
[1646666947519,1.24503965,38812.0,38811.0,0.05]
[1646666947719,1.24503965,38812.0,38810.0,0.77148561]
[1646666947720,1.89023965,38812.0,38810.0,0.77148561]
[1646666947967,1.7279,38811.0,38810.0,0.77148561]
[1646666948172,1.79238,38811.0,38810.0,0.77148561]
[1646666948368,1.59238,38811.0,38810.0,0.77148561]
[1646666949167,1.59538,38811.0,38810.0,0.77148561]
[1646666949867,1.59079092,38811.0,38810.0,0.77148561]
[1646666950069,1.69069092,38811.0,38810.0,0.77148561]
[1646666950270,1.69069092,38811.0,38810.0,0.82148561]
[1646666950469,1.68769092,38811.0,38810.0,0.82148561]
[1646666950870,1.67481092,38811.0,38810.0,0.82148561]
[1646666951270,1.57991092,38811.0,38810.0,0.77148561]
[1646666951469,1.56334329,38811.0,38810.0,0.77148561]
[1646666951927,0.86654329,38811.0,38810.0,0.77148561]
[1646666952127,0.96644329,38811.0,38810.0,1.00520887]
[1646666952329,0.96644329,38811.0,38810.0,0.82148561]
[1646666952330,1.66324329,38811.0,38810.0,0.82148561]
[1646666953128,1.65824329,38811.0,38810.0,0.82148561]
[1646666953332,1.01304329,38811.0,38810.0,0.82148561]
[1646666953529,0.91304329,38811.0,38810.0,0.82148561]
[1646666955031,0.1515,38811.0,38810.0,0.82148561]
[1646666955331,0.0516,38811.0,38810.0,0.82148561]
[1646666955767,2.8507061,38813.0,38810.0,0.82148561]
[1646666955972,0.00034797,38812.0,38811.0,0.05]
[1646666956967,2.8507061,38813.0,38811.0,0.05]
[1646666957167,2.85105406,38813.0,38811.0,0.05]
[1646666958171,2.8507061,38813.0,38811.0,0.05]
[1646666958369,2.8507061,38813.0,38812.0,0.19198725]
[1646666958776,2.0680061,38813.0,38812.0,0.7416197]
[1646666958970,1.50801962,38813.0,38812.0,1.2416197]
[1646666959224,0.66111963,38813.0,38812.0,1.42600311]
[1646666959424,0.007,38813.0,38812.0,1.42600311]
[1646666959623,0.007,38813.0,38812.0,1.62784535]
[1646666960426,0.00034795,38814.0,38812.0,1.62784535]
[1646666960624,0.05095445,38820.0,38816.0,0.5]
[1646666960832,0.05137907,38820.0,38819.0,0.36882073]
[1646666961024,0.05137907,38820.0,38819.0,0.66882073]
[1646666961230,0.0168936,38820.0,38819.0,0.91882073]
[1646666961628,0.05249504,38825.0,38824.0,0.5]
[1646666961827,0.05249504,38825.0,38824.0,0.85]
[1646666962024,0.05249504,38825.0,38824.0,0.9]
[1646666962425,0.05249504,38825.0,38824.0,0.964408]
[1646666962724,0.05249504,38825.0,38824.0,1.114408]
[1646666963173,0.05249504,38825.0,38824.0,1.05]
[1646666963373,0.05249504,38825.0,38824.0,1.11447625]
[1646666963974,0.06749504,38825.0,38824.0,1.05]
[1646666965373,0.06749504,38825.0,38824.0,1.11550688]
[1646666965975,0.06419504,38825.0,38824.0,1.11550688]
[1646666966179,0.05403564,38830.0,38825.0,1.27677]
[1646666966386,0.05403564,38830.0,38829.0,0.75]
[1646666966578,0.05403564,38830.0,38829.0,1.1]
[1646666966825,0.0011,38832.0,38830.0,1.25]
[1646666967022,0.0988,38835.0,38833.0,0.25]
[1646666967226,0.0988,38835.0,38834.0,0.514388]
[1646666967425,0.05254287,38839.0,38838.0,0.25]
[1646666967622,0.05865742,38844.0,38839.0,1.27567]
[1646666967623,0.05755742,38844.0,38839.0,1.27567]
[1646666967826,0.05755742,38844.0,38843.0,0.49042702]
[1646666968021,0.05095742,38844.0,38843.0,0.79042702]
[1646666968222,0.05095742,38844.0,38843.0,0.89042702]
[1646666968223,0.04765742,38844.0,38843.0,0.89042702]
[1646666968427,0.0632792,38858.0,38843.0,0.89042702]
[1646666968428,0.025,38873.0,38869.0,0.25]
[1646666968632,0.025,38873.0,38864.0,0.45]
[1646666968633,0.03773876,38876.0,38873.0,0.398259]
[1646666968828,0.17242276,38886.0,38875.0,1.0452]
[1646666969030,0.1,38887.0,38880.0,0.6452]
[1646666969227,0.41513942,38901.0,38890.0,0.25]
[1646666969228,0.07714454,38900.0,38890.0,0.25]
[1646666969429,0.07714454,38900.0,38890.0,0.55]
[1646666969622,0.01285,38899.0,38892.0,0.25]
[1646666969823,0.07714454,38900.0,38892.0,0.25]
[1646666970028,0.07714454,38900.0,38889.0,0.4998]
[1646666970029,0.19798814,38894.0,38889.0,0.1]
[1646666970229,0.19798814,38894.0,38889.0,0.05]
[1646666970481,0.19744681,38894.0,38888.0,0.1]
[1646666970675,0.29440444,38892.0,38888.0,0.2489]
[1646666970876,0.29440444,38892.0,38891.0,0.1998]
[1646666971077,0.44440444,38892.0,38891.0,0.1998]
[1646666971378,0.59440444,38892.0,38891.0,0.05]
[1646666971582,0.65241253,38892.0,38891.0,0.05]
[1646666971776,0.17513046,38881.0,38875.0,0.25768994]
[1646666971975,0.15,38878.0,38875.0,0.2808814]
[1646666972276,0.17513046,38881.0,38877.0,0.1998]
[1646666972477,1.0827,38878.0,38877.0,0.1998]
[1646666972676,1.0827,38878.0,38869.0,0.02025172]
[1646666972677,1.1343,38878.0,38869.0,0.02025172]
[1646666972978,0.7452,38880.0,38869.0,0.02025172]
[1646666972979,0.15,38873.0,38869.0,0.02025172]
[1646666973174,0.2016,38873.0,38869.0,0.25144648]
[1646666973376,0.2016,38873.0,38870.0,0.3]
[1646666973575,0.9843,38873.0,38870.0,0.02562072]
[1646666973775,0.9843,38873.0,38872.0,0.5]
[1646666973776,0.8343,38873.0,38872.0,0.5]
[1646666974224,0.2166,38873.0,38872.0,0.5]
[1646666974823,0.2166,38873.0,38872.0,0.6]
[1646666975223,0.9993,38873.0,38872.0,0.6]
[1646666976025,0.2166,38873.0,38872.0,0.62028176]
[1646666976222,0.0666,38873.0,38872.0,0.92028176]
[1646666976421,0.0666,38873.0,38872.0,1.16918176]
[1646666976620,0.0666,38873.0,38872.0,0.86918176]
[1646666976825,0.015,38873.0,38872.0,1.36483827]
[1646666977324,0.0001,38873.0,38872.0,1.16918176]
[1646666977522,0.0001,38873.0,38872.0,1.17597519]
[1646666978190,0.0001,38873.0,38872.0,0.87597519]
[1646666978388,0.0001,38873.0,38872.0,1.17597519]
[1646666978591,0.0001,38873.0,38872.0,1.67423419]
[1646666978794,0.0011,38884.0,38883.0,0.2489]
[1646666978990,0.0011,38884.0,38883.0,0.647159]
[1646666979189,0.0011,38884.0,38883.0,0.2489]
[1646666979394,0.0011,38884.0,38883.0,0.2989]
[1646666980891,0.0011,38884.0,38883.0,0.30569343]
[1646666981089,0.2016,38889.0,38883.0,0.30569343]
[1646666981090,0.09629939,38887.0,38883.0,0.30569343]
[1646666981491,0.00029939,38885.0,38884.0,0.1998]
[1646666981926,0.15029939,38885.0,38884.0,0.1998]
[1646666982319,0.15,38885.0,38884.0,0.1998]
[1646666983921,0.15,38885.0,38884.0,0.20659343]
[1646666984628,1.1301,38885.0,38878.0,0.004921]
[1646666984823,1.0827,38879.0,38878.0,0.004921]
[1646666985024,1.1301,38879.0,38878.0,0.004921]
[1646666985223,1.2301,38879.0,38878.0,0.004921]
[1646666985476,1.78329329,38879.0,38878.0,0.004921]
[1646666985675,0.9801,38879.0,38878.0,0.004921]
[1646666985879,0.2974,38879.0,38878.0,0.004921]
[1646666986079,1.0801,38879.0,38878.0,0.004921]
[1646666986477,1.09295,38879.0,38878.0,0.004921]
[1646666986872,1.1540892,38879.0,38878.0,0.004921]
[1646666987073,1.33400091,38879.0,38878.0,0.004921]
[1646666987278,1.32115091,38879.0,38878.0,0.004921]
[1646666988277,1.0801,38879.0,38878.0,0.004921]
[1646666988581,0.1974,38879.0,38878.0,0.004921]
[1646666988979,0.1974,38879.0,38872.0,0.61787129]
[1646666988980,1.47348401,38878.0,38872.0,0.61787129]
[1646666989242,2.22700389,38873.0,38872.0,0.61787129]
[1646666989432,2.27440389,38873.0,38872.0,0.61787129]
[1646666989630,2.30218973,38873.0,38872.0,0.61787129]
[1646666989834,2.36655873,38873.0,38872.0,0.61787129]
[1646666990031,2.51655873,38873.0,38872.0,0.61787129]
[1646666990238,0.7827,38871.0,38863.0,0.02560945]
[1646666990434,1.0827,38864.0,38862.0,0.27370585]
[1646666990634,0.8301,38863.0,38862.0,0.27370585]
[1646666990833,1.5221,38863.0,38855.0,0.27953777]
[1646666991032,0.9327,38856.0,38855.0,0.27953777]
[1646666991233,0.0474,38856.0,38855.0,0.27953777]
[1646666991432,0.8301,38856.0,38855.0,0.27953777]
[1646666992032,1.00760544,38856.0,38855.0,0.27953777]
[1646666992232,0.0474,38856.0,38855.0,0.30368946]
[1646666993874,0.0474,38856.0,38855.0,0.27953777]
[1646666994074,0.8301,38856.0,38855.0,0.27953777]
[1646666994477,0.8301,38856.0,38855.0,0.27453777]
[1646666994874,0.8301,38856.0,38855.0,0.25453777]
[1646666995276,0.8331,38856.0,38855.0,0.25453777]
[1646666995677,0.0504,38856.0,38855.0,0.25453777]
[1646666997639,1.25,38855.0,38845.0,0.002]
[1646666997831,0.9327,38851.0,38845.0,0.002]
[1646666998135,0.0474,38851.0,38845.0,0.002]
[1646666998329,0.1474,38851.0,38845.0,0.002]
[1646666998529,0.53127227,38851.0,38845.0,0.002]
[1646666998931,0.0474,38851.0,38845.0,0.302]
[1646666999131,0.0474,38851.0,38846.0,0.02100142]
[1646667000580,0.0474,38851.0,38847.0,0.1999]
[1646667001581,0.0474,38851.0,38845.0,0.002]
[1646667001783,0.0524,38851.0,38845.0,0.002]
[1646667002383,0.11956068,38851.0,38845.0,0.002]
[1646667002690,1.45226068,38851.0,38845.0,0.002]
[1646667002883,1.44726068,38851.0,38845.0,0.002]
[1646667003082,0.7827,38848.0,38839.0,0.001]
[1646667003286,0.7827,38841.0,38839.0,0.001]
[1646667003484,0.0474,38840.0,38839.0,0.001]
[1646667003685,0.8251,38840.0,38839.0,0.001]
[1646667003883,0.05344234,38835.0,38829.0,0.0217219]
[1646667004086,0.2210605,38832.0,38829.0,0.0217219]
[1646667004330,0.0474,38831.0,38828.0,0.0003655]
[1646667004527,0.111831,38831.0,38828.0,0.0003655]
[1646667004727,0.28826057,38831.0,38828.0,0.0003655]
[1646667004930,0.22354991,38831.0,38828.0,0.0003655]
[1646667005333,0.22354991,38831.0,38824.0,0.02187225]
[1646667005528,0.22354991,38831.0,38828.0,0.00035526]
[1646667005932,0.7827,38830.0,38828.0,0.00035526]
[1646667006130,0.0474,38829.0,38828.0,0.00035526]
[1646667006529,0.8301,38829.0,38822.0,0.2489]
[1646667006729,0.0474,38829.0,38822.0,0.2489]
[1646667007130,0.20826949,38825.0,38822.0,0.2489]
[1646667007333,0.0474,38824.0,38822.0,0.2489]
[1646667007633,0.0474,38824.0,38819.0,0.0268112]
[1646667007993,0.20815917,38816.0,38813.0,0.2489]
[1646667008178,0.0474,38824.0,38816.0,0.40995561]
[1646667008179,0.37128149,38817.0,38816.0,0.40995561]
[1646667008376,0.42379055,38817.0,38816.0,0.40995561]
[1646667008581,0.47119055,38817.0,38816.0,0.40995561]
[1646667008777,1.35389055,38817.0,38816.0,0.40995561]
[1646667009175,1.37803917,38817.0,38816.0,0.40995561]
[1646667009584,1.44249317,38817.0,38816.0,0.40995561]
[1646667009780,2.0327,38816.0,38815.0,0.21]
[1646667009981,2.1801,38816.0,38815.0,0.21]
[1646667010183,0.7827,38814.0,38808.0,0.1998]
[1646667010385,0.7827,38814.0,38797.0,0.4605]
[1646667010386,0.7827,38812.0,38799.0,0.02192174]
[1646667010593,0.0474,38811.0,38806.0,0.02858989]
[1646667010884,0.0474,38811.0,38809.0,0.1998]
[1646667011286,0.1,38816.0,38814.0,0.09479999]
[1646667011486,0.0474,38815.0,38814.0,0.09479999]
[1646667012027,0.0474,38815.0,38814.0,0.49305899]
[1646667012426,0.02414862,38817.0,38814.0,0.49305899]
[1646667013024,0.02414862,38817.0,38815.0,0.1998]
[1646667013227,0.02414862,38817.0,38816.0,0.2489]
[1646667013428,0.07254862,38817.0,38815.0,0.1998]
[1646667014027,0.07254862,38817.0,38815.0,0.45620979]
[1646667014228,0.0484,38817.0,38815.0,0.45620979]
[1646667014428,0.0484,38817.0,38815.0,0.25640979]
[1646667014627,0.02414862,38816.0,38815.0,0.45620979]
[1646667014827,0.02414862,38816.0,38815.0,0.1998]
[1646667015877,0.02414862,38816.0,38815.0,0.84767449]
[1646667016072,0.02414862,38816.0,38815.0,0.66752901]
[1646667016271,0.3,38832.0,38815.0,0.64185901]
[1646667016471,0.064418,38828.0,38821.0,0.2489]
[1646667017274,0.17148856,38818.0,38817.0,0.2489]
[1646667017475,0.23592456,38818.0,38814.0,0.19479999]
[1646667017673,0.23592456,38818.0,38816.0,0.1998]
[1646667018377,0.064436,38818.0,38816.0,0.1998]
[1646667018574,0.064436,38818.0,38816.0,0.70291445]
[1646667018773,0.064436,38818.0,38816.0,0.50311445]
[1646667018975,0.0474,38828.0,38816.0,0.50311445]
[1646667019225,0.293281,38834.0,38816.0,0.50311445]
[1646667019226,0.19507787,38834.0,38833.0,0.1996397]
[1646667019431,0.01287,38836.0,38833.0,0.1996397]
[1646667019630,0.1,38845.0,38833.0,0.1996397]
[1646667019631,0.01286,38839.0,38833.0,0.1996397]
[1646667019826,0.01286,38843.0,38833.0,0.1996397]
[1646667020130,0.128808,38842.0,38833.0,0.1996397]
[1646667020428,0.01286,38845.0,38839.0,0.2489]
[1646667020626,0.15573367,38848.0,38840.0,0.698259]
[1646667020627,0.01202733,38847.0,38840.0,0.698259]
[1646667020825,0.15573367,38848.0,38840.0,0.3]
[1646667021033,0.01286,38853.0,38843.0,0.29146902]
[1646667021235,0.064378,38851.0,38845.0,0.398259]
[1646667021429,0.259783,38857.0,38846.0,0.848259]
[1646667021430,0.003,38847.0,38846.0,0.848259]
[1646667021629,0.0001,38847.0,38846.0,0.72457]
[1646667021828,0.0022,38857.0,38846.0,0.72457]
[1646667021829,0.0022,38857.0,38847.0,0.02567]
[1646667022030,0.0022,38857.0,38856.0,0.548259]
[1646667022228,0.0001,38857.0,38856.0,0.973929]
[1646667022429,0.064355,38859.0,38856.0,0.973929]
[1646667022628,0.129796,38869.0,38863.0,0.2797396]
[1646667022830,0.00119777,38868.0,38866.0,0.2489]
[1646667023092,0.00119777,38868.0,38867.0,0.3]
[1646667023287,0.00119777,38868.0,38867.0,0.748259]
[1646667023593,0.0011,38869.0,38867.0,0.35]
[1646667023787,0.0011,38869.0,38868.0,0.32567]
[1646667023992,0.0011,38871.0,38869.0,0.34955867]
[1646667024193,0.0011,38881.0,38872.0,0.27457]
[1646667024388,0.0011,38881.0,38880.0,0.2489]
[1646667024790,0.0011,38881.0,38880.0,0.2989]
[1646667025388,0.0011,38881.0,38880.0,0.5989]
[1646667025789,0.0011,38881.0,38880.0,0.62457]
[1646667025992,0.0011,38889.0,38881.0,0.01198137]
[1646667026197,0.0011,38889.0,38888.0,0.398259]
[1646667026490,0.0011,38889.0,38888.0,0.698259]
[1646667026721,0.0011,38889.0,38887.0,0.2989]
[1646667027121,0.0011,38889.0,38887.0,0.05]
[1646667027324,0.0011,38889.0,38884.0,0.1998]
[1646667027325,0.0011,38889.0,38888.0,0.02499]
[1646667027525,0.42178173,38889.0,38888.0,0.02499]
[1646667027724,0.0011,38889.0,38888.0,0.02499]
[1646667027921,0.00060433,38891.0,38888.0,0.02499]
[1646667028323,0.26,38889.0,38888.0,0.02499]
[1646667029122,0.26,38889.0,38888.0,0.27389]
[1646667029326,0.26,38889.0,38888.0,0.672149]
[1646667029523,0.2473,38889.0,38888.0,0.722149]
[1646667029723,0.00060433,38891.0,38888.0,0.722149]
[1646667029927,0.00060433,38891.0,38890.0,0.15]
[1646667030226,0.00060433,38891.0,38890.0,0.5]
[1646667030776,0.00060433,38891.0,38890.0,0.998259]
[1646667030973,0.00060433,38891.0,38890.0,0.6]
[1646667031476,0.0022,38896.0,38893.0,0.24094188]
[1646667031674,0.07560394,38895.0,38894.0,0.6131961]
[1646667031972,0.07560394,38895.0,38894.0,0.7631961]
[1646667032374,0.00041696,38902.0,38895.0,1.648259]
[1646667032578,0.130771,38914.0,38912.0,0.21277831]
[1646667032579,0.0022,38914.0,38912.0,0.21277831]
[1646667032774,0.0022,38914.0,38901.0,0.42457]
[1646667032775,0.0022,38914.0,38911.0,0.07621]
[1646667033173,0.0022,38914.0,38912.0,0.698259]
[1646667033374,0.01394,38925.0,38914.0,1.648259]
[1646667033573,0.0011,38925.0,38918.0,0.2489]
[1646667033773,0.0011,38925.0,38919.0,0.45]